fUSD/lending_fUSD_20240104
["ID","MTS","AMOUNT","RATE_DAILY","PERIOD"]
[310123562,1704376283758,-608.12,0.00033698,2]
[310123563,1704376283771,-500.0,0.00033698,2]
[310123564,1704376283782,-4986.82,0.00033698,2]
[310123565,1704376283793,-500.0,0.00033698,2]
[310123566,1704376283804,-866.33,0.00033698,2]
[310123567,1704376283814,-2106.08,0.00033698,2]
[310123568,1704376283827,-500.0,0.00033698,2]
[310123569,1704376283839,-500.0,0.00033698,2]
[310123570,1704376283850,-500.0,0.00033698,2]
[310123571,1704376283860,-500.0,0.00033698,2]
[310123572,1704376283873,-500.0,0.00033698,2]
[310123573,1704376283885,-500.0,0.00033698,2]
[310123574,1704376283896,-500.0,0.00033698,2]
[310123575,1704376283907,-500.0,0.00033698,2]
[310123576,1704376283919,-500.0,0.00033698,2]
[310123577,1704376283931,-500.0,0.00033698,2]
[310123578,1704376283941,-500.0,0.00033698,2]
[310123579,1704376283952,-500.0,0.00033698,2]
[310123580,1704376283964,-500.0,0.00033698,2]
[310123581,1704376283977,-2265.71,0.00033698,2]
[310123582,1704376283988,-500.0,0.00033698,2]
[310123583,1704376284000,-500.0,0.00033698,2]
[310123584,1704376284012,-500.0,0.00033698,2]
[310123585,1704376284023,-767.02,0.00033698,2]
[310123586,1704376284035,-500.0,0.00033698,2]
[310123587,1704376284046,-540.60285629,0.00033698,2]
[310123588,1704376284057,-529.01311858,0.00033698,2]
[310123589,1704376284068,-500.0,0.00033698,2]
[310123590,1704376284085,-500.0,0.00033698,2]
[310123591,1704376284096,-500.0,0.00033698,2]
[310123592,1704376284230,-1141.21,0.00033698,2]
[310123593,1704376284255,-500.0,0.00033698,2]
[310123594,1704376284266,-500.0,0.00033698,2]
[310123595,1704376284278,-500.0,0.00033698,2]
[310123596,1704376284290,-500.0,0.00033698,2]
[310123597,1704376284305,-500.0,0.00033698,2]
[310123598,1704376284316,-500.0,0.00033698,2]
[310123599,1704376284332,-500.0,0.00033698,2]
[310123600,1704376284345,-855.1,0.00033698,2]
[310123601,1704376284356,-500.0,0.00033698,2]
[310123602,1704376284369,-500.0,0.00033698,2]
[310123603,1704376284380,-616.17,0.00033698,2]
[310123604,1704376284392,-500.0,0.00033698,2]
[310123605,1704376284403,-529.08696399,0.00033698,2]
[310123606,1704376284414,-500.0,0.00033698,2]
[310123607,1704376284425,-170.90024629,0.00033698,2]
[310123608,1704376284436,-500.0,0.00033698,2]
[310123609,1704376284448,-500.0,0.00033698,2]
[310123610,1704376284459,-500.0,0.00033698,2]
[310123611,1704376284474,-331.54096596,0.00033698,2]
[310123612,1704376284485,-500.0,0.00033698,2]
[310123613,1704376284497,-500.0,0.00033698,2]
[310123614,1704376284508,-500.0,0.00033698,2]
[310123615,1704376284520,-500.0,0.00033698,2]
[310123616,1704376284531,-500.0,0.00033698,2]
[310123617,1704376284543,-500.0,0.00033698,2]
[310123618,1704376284554,-500.0,0.00033698,2]
[310123619,1704376284565,-500.0,0.00033698,2]
[310123620,1704376284577,-500.0,0.00033698,2]
[310123621,1704376284588,-500.0,0.00033698,2]
[310123622,1704376284599,-500.0,0.00033698,2]
[310123623,1704376284609,-647.16142437,0.00033698,2]
[310123624,1704376284620,-500.0,0.00033698,2]
[310123625,1704376284630,-564.24210312,0.00033698,2]
[310123626,1704376284641,-500.0,0.00033698,2]
[310123627,1704376284652,-1115.17,0.00033698,2]
[310123628,1704376284663,-500.0,0.00033698,2]
[310123629,1704376284674,-493.94744895,0.00033698,2]
[310123630,1704376284685,-590.96829902,0.00033698,2]
[310123631,1704376284698,-500.0,0.00033698,2]
[310123632,1704376284710,-500.0,0.00033698,2]
[310123633,1704376284720,-500.0,0.00033698,2]
[310123634,1704376284730,-500.0,0.00033698,2]
[310123635,1704376284740,-500.0,0.00033698,2]
[310123636,1704376284751,-591.8046742,0.00033698,2]
[310123637,1704376284761,-500.0,0.00033698,2]
[310123638,1704376284771,-3455.17,0.00033698,2]
[310123639,1704376284781,-500.0,0.00033698,2]
[310123640,1704376284791,-500.0,0.00033698,2]
[310123641,1704376284801,-529.4043728,0.00033698,2]
[310123642,1704376284811,-500.0,0.00033698,2]
[310123643,1704376284821,-500.0,0.00033698,2]
[310123644,1704376284833,-3050.39,0.00033698,2]
[310123645,1704376284843,-1355.05,0.00033698,2]
[310123646,1704376284852,-500.0,0.00033698,2]
[310123647,1704376284862,-926.09,0.00033698,2]
[310123648,1704376284872,-488.05339187,0.00033698,2]
[310123649,1704376284882,-500.0,0.00033698,2]
[310123650,1704376284892,-3332.3,0.00033698,2]
[310123651,1704376284902,-500.0,0.00033698,2]
[310123652,1704376284912,-500.0,0.00033698,2]
[310123653,1704376284921,-500.0,0.00033698,2]
[310123654,1704376284931,-500.0,0.00033698,2]
[310123655,1704376284941,-622.83,0.00033698,2]
[310123656,1704376284951,-500.0,0.00033698,2]
[310123657,1704376284961,-500.0,0.00033698,2]
[310123658,1704376284971,-2331.02,0.00033698,2]
[310123659,1704376284981,-500.0,0.00033698,2]
[310123660,1704376284992,-660.0,0.00033698,2]
[310123661,1704376285001,-500.0,0.00033698,2]
[310123662,1704376285011,-500.0,0.00033698,2]
[310123663,1704376285020,-500.0,0.00033698,2]
[310123664,1704376285031,-500.0,0.00033698,2]
[310123665,1704376285040,-500.0,0.00033698,2]
[310123666,1704376285049,-500.0,0.00033698,2]
[310123667,1704376285059,-500.0,0.00033698,2]
[310123668,1704376285068,-500.0,0.00033698,2]
[310123669,1704376285079,-517.81309065,0.00033698,2]
[310123670,1704376285089,-500.0,0.00033698,2]
[310123671,1704376285099,-661.88,0.00033698,2]
[310123672,1704376285108,-500.0,0.00033698,2]
[310123673,1704376285117,-500.0,0.00033698,2]
[310123674,1704376285127,-500.0,0.00033698,2]
[310123675,1704376285137,-2608.4,0.00033698,2]
[310123676,1704376285146,-500.0,0.00033698,2]
[310123677,1704376285156,-500.0,0.00033698,2]
[310123678,1704376285166,-1494.03,0.00033698,2]
[310123679,1704376285175,-1463.43,0.00033698,2]
[310123680,1704376285184,-420.73765867,0.00033698,2]
[310123681,1704376285194,-500.0,0.00033698,2]
[310123682,1704376285203,-1043.9,0.00033698,2]
[310123683,1704376285218,-598.95,0.00033698,2]
[310123684,1704376285240,-1024.71,0.00033698,2]
[310123685,1704376285259,-486.76600679,0.00033698,2]
[310123686,1704376285278,-500.0,0.00033698,2]
[310123687,1704376285296,-500.0,0.00033698,2]
[310123688,1704376285315,-500.0,0.00033698,2]
[310123689,1704376285334,-500.0,0.00033698,2]
[310123690,1704376285349,-609.43,0.00033698,2]
[310123691,1704376285371,-1321.13,0.00033698,2]
[310123692,1704376285388,-1809.81,0.00033698,2]
[310123693,1704376285407,-500.0,0.00033698,2]
[310123694,1704376285429,-741.24,0.00033698,2]
[310123695,1704376285442,-500.0,0.00033698,2]
[310123696,1704376285460,-955.44,0.00033698,2]
[310123697,1704376285479,-1179.95,0.00033698,2]
[310123698,1704376285495,-568.4,0.00033698,2]
[310123699,1704376285510,-500.0,0.00033698,2]
[310123700,1704376285527,-824.39,0.00033698,2]
[310123701,1704376285544,-321.57996045,0.00033698,2]
[310123702,1704376285560,-896.64,0.00033698,2]
[310123703,1704376285577,-500.0,0.00033698,2]
[310123704,1704376285592,-565.96647672,0.00033698,2]
[310123705,1704376285607,-745.04,0.00033698,2]
[310123706,1704376285622,-534.45520608,0.00033698,2]
[310123707,1704376285637,-673.43,0.00033698,2]
[310123708,1704376285652,-780.4,0.00033698,2]
[310123709,1704376285667,-537.65,0.00033698,2]
[310123710,1704376285682,-500.0,0.00033698,2]
[310123711,1704376285698,-1236.0,0.00033698,2]
[310123712,1704376285714,-500.0,0.00033698,2]
[310123713,1704376285728,-642.93,0.00033698,2]
[310123714,1704376285743,-837.04,0.00033698,2]
[310123715,1704376285760,-500.0,0.00033698,2]
[310123716,1704376285775,-1050.16,0.00033698,2]
[310123717,1704376285790,-500.0,0.00033698,2]
[310123718,1704376285804,-500.0,0.00033698,2]
[310123719,1704376285819,-500.0,0.00033698,2]
[310123720,1704376285834,-591.6516136,0.00033698,2]
[310123721,1704376285850,-500.0,0.00033698,2]
[310123722,1704376285864,-500.0,0.00033698,2]
[310123723,1704376285878,-537.62651525,0.00033698,2]
[310123724,1704376285894,-969.09,0.00033698,2]
[310123725,1704376285909,-500.0,0.00033698,2]
[310123726,1704376285923,-532.7,0.00033698,2]
[310123727,1704376285938,-500.0,0.00033698,2]
[310123728,1704376285953,-500.0,0.00033698,2]
[310123729,1704376285968,-500.0,0.00033698,2]
[310123730,1704376285982,-626.59,0.00033698,2]
[310123731,1704376285997,-500.0,0.00033698,2]
[310123732,1704376286011,-500.0,0.00033698,2]
[310123733,1704376286026,-500.0,0.00033698,2]
[310123734,1704376286040,-500.0,0.00033698,5]
[310123735,1704376286055,-567.84825669,0.00033698,2]
[310123736,1704376286069,-517.15,0.00033698,2]
[310123737,1704376286084,-500.0,0.00033698,2]
[310123738,1704376286099,-976.99,0.00033698,2]
[310123739,1704376286113,-833.15,0.00033698,2]
[310123740,1704376286127,-500.0,0.00033698,2]
[310123741,1704376286144,-517.44,0.00033698,2]
[310123742,1704376286158,-500.0,0.00033698,2]
[310123743,1704376286172,-500.0,0.00033698,2]
[310123744,1704376286189,-500.0,0.00033698,2]
[310123745,1704376286205,-588.23,0.00033698,2]
[310123746,1704376286220,-2663.85,0.00033698,2]
[310123747,1704376286235,-524.48,0.00033698,2]
[310123748,1704376286249,-762.82,0.00033698,2]
[310123749,1704376286264,-3366.34,0.00033698,2]
[310123750,1704376286280,-516.2,0.00033698,2]
[310123751,1704376286295,-7010.51,0.00033698,2]
[310123752,1704376286310,-500.0,0.00033698,2]
[310123753,1704376286325,-500.0,0.00033698,2]
[310123754,1704376286342,-500.0,0.00033698,2]
[310123755,1704376286358,-500.0,0.00033698,2]
[310123756,1704376286373,-500.0,0.00033698,2]
[310123757,1704376286389,-864.34,0.00033698,2]
[310123758,1704376286404,-500.0,0.00033698,2]
[310123759,1704376286419,-500.0,0.00033698,2]
[310123760,1704376286435,-500.0,0.00033698,2]
[310123761,1704376286452,-150.0,0.00033699,2]
[310123762,1704376286470,-1500000.0,0.000337,7]
[310123763,1704376286486,-193.9,0.00033709,2]
[310123764,1704376286503,-337.13765,0.00033791,2]
[310123765,1704376286519,-456.180966,0.00033791,2]
[310123766,1704376286536,-234.40104,0.00033798,2]
[310123767,1704376286553,-3000.0,0.000338,2]
[310123768,1704376286570,-300.0,0.000338,7]
[310123769,1704376286586,-500.0,0.00033858,3]
[310123770,1704376286601,-500.0,0.00033866,3]
[310123771,1704376286617,-8815.96673082,0.00033872,6]
[310123772,1704376286632,-150.0,0.00033874,2]
[310123773,1704376286647,-500.60089548,0.00033874,2]
[310123774,1704376286863,-500.0,0.00033875,3]
[310123775,1704376286874,-500.0,0.00033884,3]
[310123776,1704376286883,-500.0,0.00033893,3]
[310123777,1704376286894,-234.40104,0.00033898,2]
[310123778,1704376286903,-1000.0,0.00033899,2]
[310123779,1704376286912,-255423.69124471,0.000339,2]
[310123780,1704376286922,-501.0,0.000339,23]
[310123781,1704376286931,-300.0,0.000339,12]
[310123782,1704376286941,-500.0,0.00033902,3]
[310123783,1704376286951,-500.0,0.00033902,3]
[310123784,1704376286961,-500.0,0.0003391,3]
[310123785,1704376286970,-500.0,0.0003391,3]
[310123786,1704376286980,-500.0,0.00033919,3]
[310123787,1704376286990,-500.0,0.00033919,3]
[310123788,1704376286999,-151.69064531,0.00033924,2]
[310123789,1704376287009,-500.0,0.00033928,3]
[310123790,1704376287019,-500.0,0.00033928,3]
[310123791,1704376287029,-500.0,0.00033937,3]
[310123792,1704376287039,-500.0,0.00033937,3]
[310123793,1704376287049,-500.0,0.00033946,3]
[310123794,1704376287058,-500.0,0.00033946,3]
[310123795,1704376287068,-538.45152826,0.0003395,4]
[310123796,1704376287079,-500.0,0.00033954,3]
[310123797,1704376287089,-500.0,0.00033954,3]
[310123798,1704376287098,-500.0,0.00033963,3]
[310123799,1704376287108,-500.0,0.00033963,3]
[310123800,1704376287118,-151.0,0.00033966,120]
[310123801,1704376287128,-7749.42640933,0.00033972,3]
[310123802,1704376287138,-254.33188432,0.00033972,2]
[310123803,1704376287147,-500.0,0.00033972,3]
[310123804,1704376287157,-500.0,0.00033972,3]
[310123805,1704376287167,-500.0,0.00033972,15]
[310123806,1704376287176,-500.0,0.00033972,2]
[310123807,1704376287186,-500.0,0.00033972,2]
[310123808,1704376287195,-208.96494931,0.00033972,2]
[310123809,1704376287204,-500.0,0.00033972,2]
[310123810,1704376287214,-538.38809079,0.00033972,2]
[310123811,1704376287223,-500.0,0.00033972,2]
[310123812,1704376287233,-500.0,0.00033972,2]
[310123813,1704376287242,-500.0,0.00033972,2]
[310123814,1704376287252,-500.0,0.00033972,2]
[310123815,1704376287261,-500.0,0.00033972,2]
[310123816,1704376287270,-500.0,0.00033972,2]
[310123817,1704376287280,-550.1,0.00033972,2]
[310123818,1704376287288,-500.0,0.00033972,2]
[310123819,1704376287298,-500.0,0.00033972,2]
[310123820,1704376287307,-508.44419859,0.00033972,2]
[310123821,1704376287317,-500.0,0.00033972,2]
[310123822,1704376287327,-500.0,0.00033972,2]
[310123823,1704376287337,-500.0,0.00033972,2]
[310123824,1704376287347,-500.0,0.00033972,2]
[310123825,1704376287357,-500.0,0.00033972,2]
[310123826,1704376287366,-307.98792714,0.00033972,2]
[310123827,1704376287376,-500.0,0.00033972,2]
[310123828,1704376287385,-500.0,0.00033972,2]
[310123829,1704376287395,-500.0,0.00033972,2]
[310123830,1704376287404,-500.0,0.00033972,2]
[310123831,1704376287414,-500.0,0.00033972,2]
[310123832,1704376287423,-608.12315294,0.00033972,2]
[310123833,1704376287433,-500.0,0.00033972,2]
[310123834,1704376287442,-500.0,0.00033972,2]
[310123835,1704376287451,-500.0,0.00033972,2]
[310123836,1704376287463,-500.0,0.00033972,2]
[310123837,1704376287473,-500.0,0.00033972,2]
[310123838,1704376287483,-515.34702251,0.00033972,2]
[310123839,1704376287492,-688.97,0.00033972,2]
[310123840,1704376287501,-520.59694884,0.00033972,2]
[310123841,1704376287511,-166.58179286,0.00033972,2]
[310123842,1704376287522,-587.26607292,0.00033972,2]
[310123843,1704376287531,-246.63090434,0.00033972,2]
[310123844,1704376287541,-500.0,0.00033972,2]
[310123845,1704376287551,-500.0,0.00033972,2]
[310123846,1704376287560,-533.23135831,0.00033972,2]
[310123847,1704376287571,-755.75,0.00033972,2]
[310123848,1704376287581,-500.0,0.00033972,2]
[310123849,1704376287590,-500.0,0.00033972,2]
[310123850,1704376287599,-1506.91,0.00033972,2]
[310123851,1704376287608,-500.0,0.00033972,2]
[310123852,1704376287617,-500.0,0.00033972,2]
[310123853,1704376287626,-500.0,0.00033972,2]
[310123854,1704376287636,-500.0,0.00033972,2]
[310123855,1704376287645,-637.13218775,0.00033972,2]
[310123856,1704376287654,-500.0,0.00033972,2]
[310123857,1704376287663,-500.0,0.00033972,2]
[310123858,1704376287672,-500.0,0.00033972,2]
[310123859,1704376287681,-872.68,0.00033972,2]
[310123860,1704376287690,-500.0,0.00033972,2]
[310123861,1704376287702,-1266.42,0.00033972,2]
[310123862,1704376287712,-500.0,0.00033972,2]
[310123863,1704376287721,-499.34966678,0.00033972,2]
[310123864,1704376287731,-644.8236005,0.00033972,2]
[310123865,1704376287743,-500.0,0.00033972,2]
[310123866,1704376287753,-500.0,0.00033972,2]
[310123867,1704376287763,-567.8022843,0.00033972,2]
[310123868,1704376287772,-500.0,0.00033972,2]
[310123869,1704376287781,-500.0,0.00033972,2]
[310123870,1704376287790,-526.27547067,0.00033972,2]
[310123871,1704376287799,-500.0,0.00033972,2]
[310123872,1704376287808,-500.0,0.00033972,2]
[310123873,1704376287819,-500.0,0.00033972,2]
[310123874,1704376287831,-500.0,0.00033972,2]
[310123875,1704376287843,-549.62456622,0.00033972,2]
[310123876,1704376287854,-1122.66,0.00033972,2]
[310123877,1704376287863,-500.0,0.00033972,2]
[310123878,1704376287872,-456.57659839,0.00033972,2]
[310123879,1704376287882,-500.0,0.00033972,2]
[310123880,1704376287891,-500.0,0.00033972,2]
[310123881,1704376287900,-606.89101961,0.00033972,2]
[310123882,1704376287909,-500.0,0.00033972,2]
[310123883,1704376287919,-252.91475379,0.00033972,2]
[310123884,1704376287928,-537.05251593,0.00033972,2]
[310123885,1704376287938,-279.29799249,0.00033972,2]
[310123886,1704376287948,-500.0,0.00033972,2]
[310123887,1704376287958,-683.22,0.00033972,2]
[310123888,1704376287967,-500.0,0.00033972,2]
[310123889,1704376287977,-500.0,0.00033972,2]
[310123890,1704376287987,-383.33079631,0.00033972,2]
[310123891,1704376287996,-500.0,0.00033972,2]
[310123892,1704376288006,-500.0,0.00033972,2]
[310123893,1704376288015,-500.0,0.00033972,2]
[310123894,1704376288024,-559.7,0.00033972,2]
[310123895,1704376288033,-500.0,0.00033972,2]
[310123896,1704376288042,-500.0,0.00033972,2]
[310123897,1704376288051,-500.0,0.00033972,2]
[310123898,1704376288059,-500.0,0.00033972,2]
[310123899,1704376288068,-500.0,0.00033972,2]
[310123900,1704376288078,-500.0,0.00033972,2]
[310123901,1704376288088,-500.0,0.00033972,2]
[310123902,1704376288097,-500.0,0.00033972,2]
[310123903,1704376288107,-1749.13,0.00033972,2]
[310123904,1704376288116,-500.0,0.00033972,2]
[310123905,1704376288126,-500.0,0.00033972,2]
[310123906,1704376288135,-500.0,0.00033972,2]
[310123907,1704376288145,-500.0,0.00033972,2]
[310123908,1704376288154,-500.0,0.00033972,2]
[310123909,1704376288164,-503.48,0.00033972,2]
[310123910,1704376288174,-450.82860642,0.00033972,2]
[310123911,1704376288184,-500.0,0.00033972,2]
[310123912,1704376288193,-380.76093462,0.00033972,2]
[310123913,1704376288203,-500.0,0.00033972,2]
[310123914,1704376288213,-500.0,0.00033972,2]
[310123915,1704376288222,-500.0,0.00033972,2]
[310123916,1704376288232,-500.0,0.00033972,2]
[310123917,1704376288241,-500.0,0.00033972,2]
[310123918,1704376288250,-500.0,0.00033972,2]
[310123919,1704376288259,-500.0,0.00033972,2]
[310123920,1704376288268,-500.0,0.00033972,2]
[310123921,1704376288278,-500.0,0.00033972,2]
[310123922,1704376288288,-500.0,0.00033972,2]
[310123923,1704376288297,-500.0,0.00033972,2]
[310123924,1704376288307,-637.19059222,0.00033972,2]
[310123925,1704376288316,-500.0,0.00033972,2]
[310123926,1704376288326,-500.0,0.00033972,2]
[310123927,1704376288338,-562.25,0.00033972,2]
[310123928,1704376288348,-500.0,0.00033972,2]
[310123929,1704376288358,-500.0,0.00033972,2]
[310123930,1704376288367,-500.0,0.00033972,2]
[310123931,1704376288377,-500.0,0.00033972,2]
[310123932,1704376288386,-500.0,0.00033972,2]
[310123933,1704376288395,-219.81466304,0.00033972,2]
[310123934,1704376288405,-868.86,0.00033972,2]
[310123935,1704376288415,-500.0,0.00033972,2]
[310123936,1704376288425,-500.0,0.00033972,2]
[310123937,1704376288434,-500.0,0.00033972,2]
[310123938,1704376288444,-500.0,0.00033972,2]
[310123939,1704376288454,-500.0,0.00033972,2]
[310123940,1704376288465,-500.0,0.00033972,2]
[310123941,1704376288476,-500.0,0.00033972,2]
[310123942,1704376288485,-500.0,0.00033972,2]
[310123943,1704376288495,-500.0,0.00033972,2]
[310123944,1704376288504,-588.63579853,0.00033972,2]
[310123945,1704376288513,-500.0,0.00033972,2]
[310123946,1704376288522,-500.0,0.00033972,2]
[310123947,1704376288531,-580.19249467,0.00033972,2]
[310123948,1704376288541,-689.08,0.00033972,2]
[310123949,1704376288550,-500.0,0.00033972,2]
[310123950,1704376288560,-500.0,0.00033972,2]
[310123951,1704376288569,-1000.0,0.00033972,2]
[310123952,1704376288581,-528.23,0.00033972,2]
[310123953,1704376288590,-500.0,0.00033972,2]
[310123954,1704376288600,-500.0,0.00033972,2]
[310123955,1704376288609,-500.0,0.00033972,2]
[310123956,1704376288618,-500.0,0.00033972,2]
[310123957,1704376288628,-500.0,0.00033972,2]
[310123958,1704376288637,-819.39,0.00033972,2]
[310123959,1704376288646,-500.0,0.00033972,2]
[310123960,1704376288655,-501.43,0.00033972,2]
[310123961,1704376288665,-500.0,0.00033972,2]
[310123962,1704376288674,-317.02990918,0.00033972,2]
[310123963,1704376288683,-500.0,0.00033972,2]
[310123964,1704376288693,-500.0,0.00033972,2]
[310123965,1704376288702,-218.34932226,0.00033972,2]
[310123966,1704376288711,-500.0,0.00033972,2]
[310123967,1704376288721,-500.0,0.00033972,2]
[310123968,1704376288730,-500.0,0.00033972,2]
[310123969,1704376288739,-659.39,0.00033972,2]
[310123970,1704376288748,-500.0,0.00033972,2]
[310123971,1704376288757,-500.0,0.00033972,2]
[310123972,1704376288766,-178.88802564,0.00033972,2]
[310123973,1704376288775,-500.0,0.00033972,2]
[310123974,1704376288784,-399.88007954,0.00033972,2]
[310123975,1704376288793,-500.0,0.00033972,2]
[310123976,1704376288802,-500.0,0.00033972,2]
[310123977,1704376288815,-500.0,0.00033972,2]
[310123978,1704376288824,-500.0,0.00033972,2]
[310123979,1704376288834,-500.0,0.00033972,2]
[310123980,1704376288843,-500.0,0.00033972,2]
[310123981,1704376288853,-500.0,0.00033972,2]
[310123982,1704376288863,-500.0,0.00033972,2]
[310123983,1704376288872,-500.0,0.00033972,2]
[310123984,1704376288882,-500.0,0.00033972,2]
[310123985,1704376288891,-500.0,0.00033972,2]
[310123986,1704376288901,-524.15672088,0.00033972,2]
[310123987,1704376288911,-500.0,0.00033972,2]
[310123988,1704376288920,-500.0,0.00033972,2]
[310123989,1704376288930,-500.0,0.00033972,2]
[310123990,1704376288941,-500.0,0.00033972,2]
[310123991,1704376288950,-500.0,0.00033972,2]
[310123992,1704376288960,-2553.32,0.00033972,2]
[310123993,1704376288970,-500.0,0.00033972,2]
[310123994,1704376288980,-500.0,0.00033972,2]
[310123995,1704376288989,-604.64,0.00033972,2]
[310123996,1704376288999,-500.0,0.00033972,2]
[310123997,1704376289008,-500.0,0.00033972,2]
[310123998,1704376289017,-584.06,0.00033972,2]
[310123999,1704376289027,-681.98,0.00033972,2]
[310124000,1704376289037,-564.27,0.00033972,2]
[310124001,1704376289046,-500.0,0.00033972,2]
[310124002,1704376289055,-500.0,0.00033972,2]
[310124003,1704376289065,-500.0,0.00033972,2]
[310124004,1704376289074,-500.0,0.00033972,2]
[310124005,1704376289085,-500.0,0.00033972,2]
[310124006,1704376289232,-500.0,0.00033972,2]
[310124007,1704376289242,-500.0,0.00033972,2]
[310124008,1704376289252,-225.35962396,0.00033972,2]
[310124009,1704376289262,-561.29827405,0.00033972,2]
[310124010,1704376289271,-500.0,0.00033972,2]
[310124011,1704376289281,-500.0,0.00033972,2]
[310124012,1704376289292,-500.0,0.00033972,2]
[310124013,1704376289301,-500.0,0.00033972,2]
[310124014,1704376289311,-500.0,0.00033972,2]
[310124015,1704376289321,-817.16,0.00033972,2]
[310124016,1704376289332,-500.0,0.00033972,2]
[310124017,1704376289343,-3601.75,0.00033972,2]
[310124018,1704376289354,-500.0,0.00033972,2]
[310124019,1704376289363,-566.79971546,0.00033972,2]
[310124020,1704376289377,-500.0,0.00033972,2]
[310124021,1704376289387,-500.0,0.00033972,2]
[310124022,1704376289397,-500.0,0.00033972,2]
[310124023,1704376289408,-500.0,0.00033972,2]
[310124024,1704376289418,-500.0,0.00033972,2]
[310124025,1704376289428,-500.0,0.00033972,2]
[310124026,1704376289438,-500.0,0.00033972,2]
[310124027,1704376289448,-500.0,0.00033972,2]
[310124028,1704376289459,-500.0,0.00033972,2]
[310124029,1704376289469,-500.0,0.00033972,2]
[310124030,1704376289480,-500.0,0.00033972,2]
[310124031,1704376289490,-500.0,0.00033972,2]
[310124032,1704376289500,-596.12700926,0.00033972,2]
[310124033,1704376289511,-500.0,0.00033972,2]
[310124034,1704376289521,-225.32,0.00033972,2]
[310124035,1704376289531,-717.82,0.00033972,2]
[310124036,1704376289541,-500.0,0.00033972,2]
[310124037,1704376289551,-669.95,0.00033972,2]
[310124038,1704376289561,-500.0,0.00033972,2]
[310124039,1704376289571,-500.0,0.00033972,2]
[310124040,1704376289582,-500.0,0.00033972,2]
[310124041,1704376289592,-500.0,0.00033972,2]
[310124042,1704376289601,-500.0,0.00033972,2]
[310124043,1704376289611,-500.0,0.00033972,7]
[310124044,1704376289621,-500.0,0.00033972,2]
[310124045,1704376289631,-500.0,0.00033972,2]
[310124046,1704376289641,-591.79,0.00033972,2]
[310124047,1704376289652,-500.0,0.00033972,2]
[310124048,1704376289662,-500.0,0.00033972,2]
[310124049,1704376289672,-500.0,0.00033972,2]
[310124050,1704376289682,-500.0,0.00033972,2]
[310124051,1704376289692,-500.0,0.00033972,2]
[310124052,1704376289706,-500.0,0.00033972,2]
[310124053,1704376289715,-406.48,0.00033972,2]
[310124054,1704376289726,-500.0,0.00033972,2]
[310124055,1704376289737,-500.0,0.00033972,2]
[310124056,1704376289750,-500.0,0.00033972,2]
[310124057,1704376289760,-500.0,0.00033972,2]
[310124058,1704376289770,-500.0,0.00033972,2]
[310124059,1704376289780,-500.0,0.00033972,2]
[310124060,1704376289791,-1654.56,0.00033972,2]
[310124061,1704376289801,-500.0,0.00033972,2]